[Event "Championnat du monde jeunes U12F"]
[Date "2024.11.18"]
[White "Dzafic, Merjem"]
[Black "Canossa, Elena"]
[WhiteElo "1568"]
[BlackElo "1482"]
[Round "4.43"]
[Result "1-0"]
[TimeControl "5400+30"]

1. e4 {[%clk 1:30:57]} 1... e5 {[%clk 1:30:54]} 2. Nf3 {[%clk 1:31:17]} 2... Nf6
{[%clk 1:31:10]} 3. Nxe5 {[%clk 1:31:28]} 3... d6 {[%clk 1:31:25]} 4. Nf3 {[%clk
1:31:52]} 4... Nxe4 {[%clk 1:31:41]} 5. Qe2 {[%clk 1:32:07]} 5... Qe7 {[%clk
1:31:44]} 6. d3 {[%clk 1:32:20]} 6... Nf6 {[%clk 1:31:24]} 7. Nc3 {[%clk
1:32:19]} 7... Qxe2+ {[%clk 1:25:28]} 8. Bxe2 {[%clk 1:32:39]} 8... Be7 {[%clk
1:25:20]} 9. Nb5 {[%clk 1:30:51]} 9... Nd5 {[%clk 1:17:12]} 10. Bd2 {[%clk
1:09:26]} 10... Bd7 {[%clk 1:09:32]} 11. Nc3 {[%clk 1:09:18]} 11... Nf6 {[%clk
1:08:39]} 12. O-O-O {[%clk 1:06:42]} 12... Nc6 {[%clk 1:07:34]} 13. h3 {[%clk
1:06:04]} 13... h6 {[%clk 1:01:30]} 14. Rhe1 {[%clk 1:05:44]} 14... O-O-O {[%clk
0:59:31]} 15. d4 {[%clk 1:03:35]} 15... d5 {[%clk 0:54:05]} 16. Bb5 {[%clk
1:02:10]} 16... Be6 {[%clk 0:37:32]} 17. Bxc6 {[%clk 0:53:45]} 17... bxc6 {[%clk
0:37:52]} 18. Ne5 {[%clk 0:53:39]} 18... Rde8 {[%clk 0:26:24]} 19. Nxc6 {[%clk
0:48:16]} 19... Kb7 {[%clk 0:25:09]} 20. Ne5 {[%clk 0:47:42]} 20... c6 {[%clk
0:18:27]} 21. Re2 {[%clk 0:44:07]} 21... Nd7 {[%clk 0:12:56]} 22. Nxd7 {[%clk
0:44:02]} 22... Bxd7 {[%clk 0:13:18]} 23. Rde1 {[%clk 0:44:25]} 23... Bd6 {[%clk
0:13:23]} 24. Rxe8 {[%clk 0:44:20]} 24... Rxe8 {[%clk 0:13:39]} 25. Rxe8 {[%clk
0:44:39]} 25... Bxe8 {[%clk 0:14:00]} 26. Ne2 {[%clk 0:41:19]} 26... h5 {[%clk
0:08:47]} 27. Bf4 {[%clk 0:41:02]} 27... Kc7 {[%clk 0:07:26]} 28. Bxd6+ {[%clk
0:38:53]} 28... Kxd6 {[%clk 0:07:48]} 29. Nf4 {[%clk 0:38:35]} 29... g6 {[%clk
0:08:03]} 30. Kd2 {[%clk 0:38:40]} 30... c5 {[%clk 0:04:08]} 31. Kc3 {[%clk
0:38:18]} 31... c4 {[%clk 0:03:42]} 32. b3 {[%clk 0:38:07]} 32... cxb3 {[%clk
0:00:47]} 33. axb3 {[%clk 0:38:24]} 33... a5 {[%clk 0:00:55]} 34. g4 {[%clk
0:36:30]} 34... hxg4 {[%clk 0:01:13]} 35. hxg4 {[%clk 0:36:47]} 35... Bd7 {[%clk
0:01:22]} 36. f3 {[%clk 0:36:42]} 36... Bc6 {[%clk 0:01:10]} 37. Kd3 {[%clk
0:34:35]} 37... Kc7 {[%clk 0:01:22]} 38. Ke3 {[%clk 0:33:43]} 38... Kb6 {[%clk
0:01:33]} 39. Ne2 {[%clk 0:32:32]} 39... Kb5 {[%clk 0:00:57]} 40. c3 {[%clk
0:30:58]} 40... a4 {[%clk 0:00:39]} 41. bxa4+ {[%clk 0:30:54]} 41... Kxa4 {[%clk
0:01:00]} 42. Kf4 {[%clk 0:25:34]} 42... f6 {[%clk 0:00:36]} 43. g5 {[%clk
0:25:41]} 43... f5 {[%clk 0:00:37]} 44. Ke5 {[%clk 0:25:55]} 44... Kb3 {[%clk
0:00:35]} 45. Kd6 {[%clk 0:25:00]} 45... Ba8 {[%clk 0:00:45]} 46. Nf4 {[%clk
0:24:43]} 46... Kxc3 {[%clk 0:00:55]} 47. Nxg6 {[%clk 0:24:59]} 47... Kxd4
{[%clk 0:01:18]} 48. Ne5 {[%clk 0:24:25]} 48... Ke3 {[%clk 0:00:55]} 49. g6
{[%clk 0:24:30]} 49... d4 {[%clk 0:01:10]} 50. g7 {[%clk 0:24:21]} 50... d3
{[%clk 0:01:24]} 51. Nxd3 {[%clk 0:24:10]} 51... Kxd3 {[%clk 0:01:42]} 52. g8=Q
{[%clk 0:24:33]} 52... Bxf3 {[%clk 0:02:04]} 53. Ke5 {[%clk 0:24:10]} 53... Be4
{[%clk 0:02:08]} 54. Qd8+ {[%clk 0:23:11]} 54... Ke3 {[%clk 0:02:11]} 55. Qd4+
{[%clk 0:23:03]} 55... Kf3 {[%clk 0:02:35]} 56. Qc3+ {[%clk 0:22:08]} 56... Kg4
{[%clk 0:02:41]} 57. Qe3 {[%clk 0:21:56]} 57... Kh4 {[%clk 0:01:20]} 58. Qg1
{[%clk 0:22:03]} 58... Kh5 {[%clk 0:00:37]} 59. Qg3 {[%clk 0:22:02]} 59... Kh6
{[%clk 0:00:35]} 60. Kf6 {[%clk 0:22:11]} 60... f4 {[%clk 0:00:33]} 61. Qg5+
{[%clk 0:22:11]} 61... Kh7 {[%clk 0:00:49]} 62. Qg7# 1-0

[Variant "Standard"]
[Site "Europe Echecs"]

[Event "Championnat du monde jeunes U12F"]
[Date "2024.11.18"]
[White "Liu, Lillian Yu-Ning"]
[Black "Yang, Hayeon"]
[WhiteElo "1456"]
[BlackElo "1482"]
[Round "4.44"]
[Result "1-0"]
[TimeControl "5400+30"]

1. e4 {[%clk 1:30:58]} 1... e5 {[%clk 1:30:47]} 2. Nf3 {[%clk 1:31:23]} 2... Nc6
{[%clk 1:31:01]} 3. Bc4 {[%clk 1:31:47]} 3... Bc5 {[%clk 1:31:10]} 4. Nc3 {[%clk
1:32:06]} 4... Nf6 {[%clk 1:31:24]} 5. d3 {[%clk 1:32:26]} 5... h6 {[%clk
1:31:21]} 6. O-O {[%clk 1:32:45]} 6... d6 {[%clk 1:31:32]} 7. Na4 {[%clk
1:33:06]} 7... Bb6 {[%clk 1:31:13]} 8. h3 {[%clk 1:33:23]} 8... O-O {[%clk
1:30:41]} 9. Re1 {[%clk 1:33:41]} 9... Bd7 {[%clk 1:30:32]} 10. Nxb6 {[%clk
1:32:56]} 10... axb6 {[%clk 1:30:48]} 11. c3 {[%clk 1:33:01]} 11... Ne7 {[%clk
1:29:44]} 12. d4 {[%clk 1:32:50]} 12... Ng6 {[%clk 1:28:26]} 13. b4 {[%clk
1:25:45]} 13... Re8 {[%clk 1:28:12]} 14. d5 {[%clk 1:23:13]} 14... Nh5 {[%clk
1:26:40]} 15. Nh2 {[%clk 1:05:06]} 15... Nhf4 {[%clk 1:25:59]} 16. Bxf4 {[%clk
1:00:33]} 16... Nxf4 {[%clk 1:25:22]} 17. Qf3 {[%clk 0:57:09]} 17... Rf8 {[%clk
1:24:11]} 18. Qg3 {[%clk 0:46:49]} 18... Qe8 {[%clk 1:23:08]} 19. Ng4 {[%clk
0:45:20]} 19... Kh8 {[%clk 1:23:01]} 20. Ne3 {[%clk 0:43:14]} 20... Bb5 {[%clk
1:22:34]} 21. Bxb5 {[%clk 0:39:22]} 21... Qxb5 {[%clk 1:22:29]} 22. Kh2 {[%clk
0:35:39]} 22... c5 {[%clk 1:20:33]} 23. Nf5 {[%clk 0:33:53]} 23... Ng6 {[%clk
1:20:13]} 24. h4 {[%clk 0:31:56]} 24... Rg8 {[%clk 1:18:49]} 25. h5 {[%clk
0:32:02]} 25... Nf4 {[%clk 1:18:59]} 26. Ne7 {[%clk 0:32:08]} 26... Rgf8 {[%clk
1:18:00]} 27. Nf5 {[%clk 0:30:54]} 27... g6 {[%clk 1:16:59]} 28. hxg6 {[%clk
0:22:58]} 28... fxg6 {[%clk 1:17:12]} 29. Nxh6 {[%clk 0:22:03]} 29... Kg7 {[%clk
1:17:20]} 30. Nf5+ {[%clk 0:22:10]} 30... Rxf5 {[%clk 1:13:49]} 31. exf5 {[%clk
0:22:24]} 31... Rh8+ {[%clk 1:14:05]} 32. Kg1 {[%clk 0:22:34]} 32... Ne2+ {[%clk
1:14:13]} 33. Rxe2 {[%clk 0:22:53]} 33... Qxe2 {[%clk 1:14:32]} 34. Qxg6+ {[%clk
0:23:13]} 34... Kf8 {[%clk 1:14:19]} 35. Qxd6+ {[%clk 0:23:08]} 35... Kg8 {[%clk
1:14:33]} 36. Qd8+ {[%clk 0:22:38]} 36... Kf7 {[%clk 1:14:23]} 37. Qxh8 {[%clk
0:21:24]} 1-0

[Variant "Standard"]
[Site "Europe Echecs"]

[Event "Championnat du monde jeunes U12F"]
[Date "2024.11.19"]
[White "Sinkar, Anagha Aniket"]
[Black "Amanzhol, Khanzada"]
[WhiteElo "1723"]
[BlackElo "1780"]
[Round "5.1"]
[Result "0-1"]
[TimeControl "5400+30"]

1. e4 {[%clk 1:30:38]} 1... c5 {[%clk 1:30:43]} 2. c3 {[%clk 1:30:37]} 2... Nf6
{[%clk 1:31:06]} 3. e5 {[%clk 1:30:30]} 3... Nd5 {[%clk 1:31:30]} 4. Nf3 {[%clk
1:30:15]} 4... Nc6 {[%clk 1:28:37]} 5. Bc4 {[%clk 1:29:29]} 5... Nb6 {[%clk
1:26:17]} 6. Bb3 {[%clk 1:28:41]} 6... c4 {[%clk 1:26:37]} 7. Bc2 {[%clk
1:28:23]} 7... d6 {[%clk 1:26:59]} 8. exd6 {[%clk 1:26:16]} 8... Qxd6 {[%clk
1:27:23]} 9. d4 {[%clk 1:24:33]} 9... Bg4 {[%clk 1:21:17]} 10. O-O {[%clk
1:21:11]} 10... O-O-O {[%clk 1:20:25]} 11. Nbd2 {[%clk 1:17:28]} 11... e5 {[%clk
1:15:38]} 12. Qe2 {[%clk 0:55:21]} 12... exd4 {[%clk 1:12:16]} 13. Nxc4 {[%clk
0:52:55]} 13... Nxc4 {[%clk 1:11:32]} 14. Qxc4 {[%clk 0:52:50]} 14... Bxf3
{[%clk 1:05:16]} 15. Bf5+ {[%clk 0:49:38]} 15... Kb8 {[%clk 1:04:55]} 16. gxf3
{[%clk 0:49:04]} 16... Ne5 {[%clk 1:03:36]} 17. Qe2 {[%clk 0:47:54]} 17... d3
{[%clk 0:57:24]} 18. Qe4 {[%clk 0:47:05]} 18... g6 {[%clk 0:56:02]} 19. Bf4
{[%clk 0:45:20]} 19... Bg7 {[%clk 0:55:29]} 20. Bh3 {[%clk 0:44:21]} 20... Rhe8
{[%clk 0:53:06]} 21. Rfd1 {[%clk 0:39:48]} 21... Ka8 {[%clk 0:52:39]} 22. Bf1
{[%clk 0:37:53]} 22... f5 {[%clk 0:49:56]} 23. Qe3 {[%clk 0:24:46]} 23... g5
{[%clk 0:42:10]} 24. Bxe5 {[%clk 0:20:03]} 24... Bxe5 {[%clk 0:40:59]} 25. Rxd3
{[%clk 0:18:41]} 25... Bxh2+ {[%clk 0:40:43]} 26. Kg2 {[%clk 0:17:29]} 26... Qh6
{[%clk 0:33:42]} 27. Rxd8+ {[%clk 0:15:59]} 27... Rxd8 {[%clk 0:32:29]} 28. f4
{[%clk 0:11:18]} 28... Bxf4 {[%clk 0:32:11]} 29. Qh3 {[%clk 0:11:17]} 29... Qg6
{[%clk 0:31:13]} 30. Qf3 {[%clk 0:10:40]} 30... Bb8 {[%clk 0:30:49]} 31. Bd3
{[%clk 0:10:13]} 31... g4 {[%clk 0:30:51]} 32. Qe3 {[%clk 0:07:59]} 32... Qd6
{[%clk 0:30:34]} 33. Rd1 {[%clk 0:07:30]} 33... Qh2+ {[%clk 0:30:20]} 34. Kf1
{[%clk 0:07:54]} 34... f4 {[%clk 0:29:51]} 35. Qe4 {[%clk 0:07:19]} 35... Qh3+
{[%clk 0:28:37]} 36. Ke2 {[%clk 0:07:01]} 36... f3+ {[%clk 0:27:56]} 37. Kd2
{[%clk 0:07:05]} 37... Qg2 {[%clk 0:26:53]} 38. Ke3 {[%clk 0:06:44]} 38... Qh3
{[%clk 0:23:29]} 39. Kd2 {[%clk 0:04:58]} 39... Qh2 {[%clk 0:23:25]} 40. Qxg4
{[%clk 0:00:43]} 40... Qxf2+ {[%clk 0:23:44]} 41. Kc1 {[%clk 0:01:06]} 41...
Qe3+ {[%clk 0:23:05]} 42. Kc2 {[%clk 0:01:28]} 42... Bf4 {[%clk 0:22:26]} 43.
Qh4 {[%clk 0:01:00]} 43... Bg5 {[%clk 0:21:28]} 44. Qxh7 {[%clk 0:00:45]} 44...
f2 {[%clk 0:20:44]} 45. Qh1 {[%clk 0:00:37]} 45... Bf4 {[%clk 0:17:00]} 0-1

[Variant "Standard"]
[Site "Europe Echecs"]

[Event "Championnat du monde jeunes U12F"]
[Date "2024.11.19"]
[White "Chovanec, Alice"]
[Black "Buyankhishig, Batpelden"]
[WhiteElo "1694"]
[BlackElo "1867"]
[Round "5.2"]
[Result "0-1"]
[TimeControl "5400+30"]

1. d4 {[%clk 1:30:54]} 1... Nf6 {[%clk 1:29:57]} 2. c4 {[%clk 1:31:14]} 2... e6
{[%clk 1:29:44]} 3. Nc3 {[%clk 1:31:25]} 3... Bb4 {[%clk 1:29:55]} 4. f3 {[%clk
1:31:27]} 4... d5 {[%clk 1:29:59]} 5. a3 {[%clk 1:31:25]} 5... Bxc3+ {[%clk
1:29:46]} 6. bxc3 {[%clk 1:31:42]} 6... c5 {[%clk 1:28:54]} 7. e3 {[%clk
1:30:53]} 7... O-O {[%clk 1:28:54]} 8. cxd5 {[%clk 1:31:02]} 8... exd5 {[%clk
1:28:12]} 9. Bd3 {[%clk 1:30:57]} 9... b6 {[%clk 1:27:50]} 10. Ne2 {[%clk
1:30:22]} 10... Re8 {[%clk 1:27:19]} 11. O-O {[%clk 1:30:19]} 11... Ba6 {[%clk
1:27:33]} 12. Ng3 {[%clk 1:29:56]} 12... Bxd3 {[%clk 1:26:40]} 13. Qxd3 {[%clk
1:30:02]} 13... Nc6 {[%clk 1:26:11]} 14. Bb2 {[%clk 1:28:43]} 14... h5 {[%clk
1:23:23]} 15. Rae1 {[%clk 1:26:38]} 15... h4 {[%clk 1:13:03]} 16. Nh1 {[%clk
1:21:52]} 16... Nh5 {[%clk 1:06:54]} 17. Nf2 {[%clk 1:13:57]} 17... Re6 {[%clk
1:03:32]} 18. Nh3 {[%clk 1:08:11]} 18... Qe7 {[%clk 0:53:32]} 19. Bc1 {[%clk
0:57:47]} 19... Re8 {[%clk 0:49:53]} 20. Bd2 {[%clk 0:51:21]} 20... g6 {[%clk
0:45:41]} 21. f4 {[%clk 0:41:53]} 21... c4 {[%clk 0:37:52]} 22. Qe2 {[%clk
0:39:27]} 22... f5 {[%clk 0:33:52]} 23. Ng5 {[%clk 0:38:05]} 23... Nxf4 {[%clk
0:30:24]} 24. Qf3 {[%clk 0:32:22]} 24... Qxg5 {[%clk 0:30:13]} 25. exf4 {[%clk
0:32:02]} 25... Qd8 {[%clk 0:29:57]} 26. Rxe6 {[%clk 0:31:19]} 26... Rxe6 {[%clk
0:30:20]} 27. Re1 {[%clk 0:31:42]} 27... Qd6 {[%clk 0:26:02]} 28. Rxe6 {[%clk
0:30:32]} 28... Qxe6 {[%clk 0:26:24]} 29. Kf1 {[%clk 0:30:40]} 29... Qe4 {[%clk
0:21:02]} 30. Qh3 {[%clk 0:25:00]} 30... Qd3+ {[%clk 0:17:42]} 31. Qxd3 {[%clk
0:23:27]} 31... cxd3 {[%clk 0:18:11]} 32. Kf2 {[%clk 0:23:43]} 32... h3 {[%clk
0:16:53]} 33. gxh3 {[%clk 0:23:44]} 33... Na5 {[%clk 0:17:20]} 34. Ke3 {[%clk
0:23:28]} 34... Nc4+ {[%clk 0:17:47]} 35. Kxd3 {[%clk 0:23:50]} 35... Nxa3
{[%clk 0:18:13]} 36. Bc1 {[%clk 0:22:33]} 36... Nc4 {[%clk 0:18:31]} 37. Kc2
{[%clk 0:19:59]} 37... b5 {[%clk 0:18:09]} 38. h4 {[%clk 0:19:36]} 38... Kh7
{[%clk 0:18:10]} 39. h5 {[%clk 0:16:13]} 39... gxh5 {[%clk 0:18:35]} 40. h4
{[%clk 0:16:05]} 40... Kg6 {[%clk 0:18:40]} 41. Kd3 {[%clk 0:15:44]} 41... Kf6
{[%clk 0:18:46]} 42. Kc2 {[%clk 0:15:47]} 42... Ke6 {[%clk 0:19:08]} 43. Kb3
{[%clk 0:16:05]} 43... Kd6 {[%clk 0:18:44]} 44. Ba3+ {[%clk 0:14:25]} 44... Nxa3
{[%clk 0:13:56]} 45. Kxa3 {[%clk 0:14:48]} 45... a5 {[%clk 0:14:04]} 46. Kb3
{[%clk 0:13:24]} 46... Kc6 {[%clk 0:14:06]} 47. Ka3 {[%clk 0:11:53]} 47... a4
{[%clk 0:14:19]} 48. Kb4 {[%clk 0:11:14]} 48... Kb6 {[%clk 0:14:43]} 49. c4
{[%clk 0:10:08]} 49... dxc4 {[%clk 0:14:29]} 50. d5 {[%clk 0:10:28]} 50... a3
{[%clk 0:14:34]} 51. Kxa3 {[%clk 0:10:50]} 51... Kc5 {[%clk 0:15:00]} 52. d6
{[%clk 0:11:12]} 52... Kxd6 {[%clk 0:15:24]} 53. Kb4 {[%clk 0:11:36]} 53... Kd5
{[%clk 0:15:46]} 54. Kc3 {[%clk 0:11:51]} 54... Ke4 {[%clk 0:16:12]} 55. Kb4
{[%clk 0:12:11]} 55... Kxf4 {[%clk 0:16:37]} 56. Kxb5 {[%clk 0:12:35]} 56... c3
{[%clk 0:17:04]} 57. Kb4 {[%clk 0:12:59]} 57... c2 {[%clk 0:17:31]} 58. Kb3
{[%clk 0:13:23]} 58... c1=Q {[%clk 0:17:55]} 59. Ka2 {[%clk 0:13:49]} 59... Ke4
{[%clk 0:18:16]} 60. Kb3 {[%clk 0:14:10]} 60... Kd4 {[%clk 0:18:27]} 61. Ka2
{[%clk 0:13:59]} 61... Qc3 {[%clk 0:18:23]} 62. Kb1 {[%clk 0:14:18]} 62... Qd2
{[%clk 0:18:49]} 63. Ka1 {[%clk 0:14:44]} 63... Kc3 {[%clk 0:19:14]} 64. Kb1
{[%clk 0:15:09]} 64... Qb2# {[%clk 0:19:40]} 0-1

[Variant "Standard"]
[Site "Europe Echecs"]

[Event "Championnat du monde jeunes U12F"]
[Date "2024.11.19"]
[White "Zavivaeva, Kristina"]
[Black "Siddhi Rao"]
[WhiteElo "1775"]
[BlackElo "1677"]
[Round "5.3"]
[Result "1/2-1/2"]
[TimeControl "5400+30"]

1. Nf3 {[%clk 1:30:58]} 1... d5 {[%clk 1:30:53]} 2. g3 {[%clk 1:31:21]} 2... Nd7
{[%clk 1:31:15]} 3. c4 {[%clk 1:31:08]} 3... dxc4 {[%clk 1:27:13]} 4. Na3 {[%clk
1:28:10]} 4... e5 {[%clk 1:21:06]} 5. Qc2 {[%clk 1:22:22]} 5... Bc5 {[%clk
0:59:49]} 6. Bg2 {[%clk 1:18:06]} 6... Ngf6 {[%clk 0:57:21]} 7. O-O {[%clk
1:17:06]} 7... O-O {[%clk 0:56:18]} 8. Nxc4 {[%clk 1:17:01]} 8... Qe7 {[%clk
0:54:07]} 9. b3 {[%clk 1:14:09]} 9... h6 {[%clk 0:47:31]} 10. Bb2 {[%clk
1:13:31]} 10... e4 {[%clk 0:40:14]} 11. Nfe5 {[%clk 1:08:47]} 11... Nxe5 {[%clk
0:36:43]} 12. Bxe5 {[%clk 1:05:26]} 12... Ng4 {[%clk 0:27:14]} 13. Bb2 {[%clk
0:59:37]} 13... Bf5 {[%clk 0:25:34]} 14. Ne3 {[%clk 0:56:38]} 14... Nxe3 {[%clk
0:25:40]} 15. fxe3 {[%clk 0:56:54]} 15... Bh7 {[%clk 0:23:44]} 16. Rf4 {[%clk
0:54:49]} 16... Rae8 {[%clk 0:15:03]} 17. Raf1 {[%clk 0:51:30]} 17... Bd6 {[%clk
0:12:37]} 18. Rg4 {[%clk 0:46:47]} 18... Be5 {[%clk 0:07:29]} 19. Bxe4 {[%clk
0:33:44]} 19... f5 {[%clk 0:06:53]} 20. Bxe5 {[%clk 0:33:32]} 20... Qxe5 {[%clk
0:06:08]} 21. Rgf4 {[%clk 0:33:01]} 21... g5 {[%clk 0:05:00]} 22. d4 {[%clk
0:31:56]} 22... Qe6 {[%clk 0:02:15]} 23. Bd3 {[%clk 0:25:41]} 23... Qxe3+ {[%clk
0:02:10]} 24. R4f2 {[%clk 0:26:06]} 24... Re7 {[%clk 0:00:59]} 25. Qc5 {[%clk
0:25:11]} 25... b6 {[%clk 0:01:00]} 26. Qd5+ {[%clk 0:25:05]} 26... Kg7 {[%clk
0:00:46]} 27. Kh1 {[%clk 0:24:01]} 27... c6 {[%clk 0:00:41]} 28. Qc4 {[%clk
0:23:25]} 28... Ref7 {[%clk 0:00:34]} 29. Rf3 {[%clk 0:22:37]} 29... Qe8 {[%clk
0:00:48]} 30. Qc2 {[%clk 0:21:47]} 30... Qd7 {[%clk 0:00:43]} 31. Qc3 {[%clk
0:21:45]} 31... Rf6 {[%clk 0:00:39]} 32. e3 {[%clk 0:20:39]} 32... Qd5 {[%clk
0:00:33]} 33. Kg1 {[%clk 0:20:48]} 33... b5 {[%clk 0:00:53]} 34. a4 {[%clk
0:20:12]} 34... a6 {[%clk 0:01:09]} 35. R3f2 {[%clk 0:19:55]} 35... Re8 {[%clk
0:01:13]} 36. e4 {[%clk 0:19:12]} 36... fxe4 {[%clk 0:00:34]} 37. Rxf6 {[%clk
0:17:06]} 37... exd3 {[%clk 0:00:58]} 38. Qc5 {[%clk 0:15:42]} 38... Qxc5 {[%clk
0:00:40]} 39. dxc5 {[%clk 0:16:06]} 39... Be4 {[%clk 0:00:36]} 40. Rd6 {[%clk
0:15:26]} 40... Bd5 {[%clk 0:00:35]} 41. axb5 {[%clk 0:15:01]} 41... axb5 {[%clk
0:00:59]} 42. Rd1 {[%clk 0:13:47]} 42... Re3 {[%clk 0:01:09]} 43. Rd2 {[%clk
0:13:43]} 43... Rf3 {[%clk 0:00:47]} 44. Rxd5 {[%clk 0:11:22]} 44... cxd5 {[%clk
0:01:08]} 45. c6 {[%clk 0:11:46]} 45... Rf6 {[%clk 0:01:19]} 46. Rxd3 {[%clk
0:11:52]} 46... Rxc6 {[%clk 0:01:44]} 47. Rxd5 {[%clk 0:12:15]} 47... b4 48. Rb5
{[%clk 0:12:09]} 48... Rc1+ {[%clk 0:01:02]} 49. Kg2 {[%clk 0:12:35]} 49... Rc2+
{[%clk 0:01:26]} 50. Kh3 {[%clk 0:12:50]} 50... Kg6 {[%clk 0:00:38]} 51. Rb6+
{[%clk 0:12:39]} 51... Kg7 {[%clk 0:00:34]} 52. Rxb4 {[%clk 0:12:52]} 52... h5
{[%clk 0:00:50]} 53. Rc4 {[%clk 0:10:57]} 53... Rb2 {[%clk 0:00:34]} 54. b4
{[%clk 0:10:58]} 54... Kf6 {[%clk 0:00:34]} 55. Rc6+ {[%clk 0:11:11]} 55... Kf5
{[%clk 0:00:35]} 56. Rc5+ {[%clk 0:11:26]} 56... Kg6 {[%clk 0:00:53]} 57. Rc6+
{[%clk 0:11:24]} 57... Kf5 {[%clk 0:01:19]} 58. Rc5+ {[%clk 0:11:41]} 58... Kg6
{[%clk 0:01:45]} 1/2-1/2

[Variant "Standard"]
[Site "Europe Echecs"]

[Event "Championnat du monde jeunes U12F"]
[Date "2024.11.19"]
[White "Mozolevskaya, Tatyana Nik"]
[Black "Allahverdi, Zahra"]
[WhiteElo "1775"]
[BlackElo "1718"]
[Round "5.4"]
[Result "1/2-1/2"]
[TimeControl "5400+30"]

1. c4 {[%clk 1:30:58]} 1... e5 {[%clk 1:30:54]} 2. Nc3 {[%clk 1:31:13]} 2... Nc6
{[%clk 1:31:01]} 3. g3 {[%clk 1:31:13]} 3... Nf6 {[%clk 1:30:50]} 4. Bg2 {[%clk
1:31:34]} 4... d6 {[%clk 1:30:15]} 5. d3 {[%clk 1:29:22]} 5... Be7 {[%clk
1:30:10]} 6. Nf3 {[%clk 1:29:44]} 6... h6 {[%clk 1:29:17]} 7. O-O {[%clk
1:29:59]} 7... O-O {[%clk 1:29:27]} 8. Rb1 {[%clk 1:29:41]} 8... Be6 {[%clk
1:21:54]} 9. Nd2 {[%clk 1:24:26]} 9... d5 {[%clk 1:20:04]} 10. b3 {[%clk
1:13:53]} 10... d4 {[%clk 1:15:48]} 11. Nb5 {[%clk 1:13:32]} 11... a6 {[%clk
1:15:56]} 12. Na3 {[%clk 1:13:54]} 12... Qd7 {[%clk 1:10:07]} 13. Nc2 {[%clk
1:06:08]} 13... Nh7 {[%clk 1:03:15]} 14. b4 {[%clk 1:05:41]} 14... f5 {[%clk
0:59:37]} 15. a4 {[%clk 1:03:33]} 15... f4 {[%clk 0:46:27]} 16. b5 {[%clk
1:02:42]} 16... Nd8 17. Nf3 {[%clk 0:53:01]} 17... fxg3 {[%clk 0:37:56]} 18.
fxg3 {[%clk 0:51:07]} 18... Nf7 {[%clk 0:38:02]} 19. Nce1 {[%clk 0:41:10]} 19...
axb5 {[%clk 0:32:53]} 20. axb5 {[%clk 0:41:21]} 20... e4 {[%clk 0:30:11]} 21.
Nd2 {[%clk 0:29:43]} 21... exd3 {[%clk 0:29:25]} 22. exd3 {[%clk 0:29:53]} 22...
Nfg5 {[%clk 0:28:48]} 23. Nef3 {[%clk 0:27:10]} 23... Nh3+ {[%clk 0:23:01]} 24.
Kh1 {[%clk 0:27:33]} 24... N7g5 {[%clk 0:22:44]} 25. Nxg5 {[%clk 0:24:23]} 25...
Bxg5 {[%clk 0:18:17]} 26. Ne4 {[%clk 0:20:58]} 26... Be7 {[%clk 0:18:09]} 27.
Bb2 {[%clk 0:18:32]} 27... Rxf1+ {[%clk 0:16:07]} 28. Qxf1 {[%clk 0:18:45]}
28... Rf8 {[%clk 0:16:18]} 29. Qe2 {[%clk 0:18:28]} 29... Bg4 {[%clk 0:15:38]}
30. Qd2 {[%clk 0:16:17]} 30... Rf3 {[%clk 0:11:38]} 31. Rf1 {[%clk 0:13:05]}
31... Re3 {[%clk 0:11:18]} 32. Re1 {[%clk 0:11:44]} 32... Rf3 {[%clk 0:11:10]}
33. Rf1 {[%clk 0:08:29]} 33... Re3 {[%clk 0:11:12]} 34. Re1 {[%clk 0:07:39]}
1/2-1/2

[Variant "Standard"]
[Site "Europe Echecs"]

[Event "Championnat du monde jeunes U12F"]
[Date "2024.11.19"]
[White "Abak, Tuana"]
[Black "Qiu, Laurie"]
[WhiteElo "1806"]
[BlackElo "1994"]
[Round "5.5"]
[Result "0-1"]
[TimeControl "5400+30"]

1. e4 {[%clk 1:30:58]} 1... c5 {[%clk 1:30:55]} 2. c3 {[%clk 1:31:24]} 2... Nf6
{[%clk 1:31:02]} 3. e5 {[%clk 1:31:51]} 3... Nd5 {[%clk 1:31:16]} 4. Nf3 {[%clk
1:32:16]} 4... Nc6 {[%clk 1:31:31]} 5. Bc4 {[%clk 1:32:37]} 5... Nb6 {[%clk
1:31:47]} 6. Bb3 {[%clk 1:33:03]} 6... d6 {[%clk 1:32:10]} 7. exd6 {[%clk
1:28:28]} 7... Qxd6 {[%clk 1:32:34]} 8. O-O {[%clk 1:28:32]} 8... Be6 {[%clk
1:32:51]} 9. a4 {[%clk 1:26:00]} 9... Bxb3 {[%clk 1:32:53]} 10. Qxb3 {[%clk
1:26:29]} 10... Qd5 {[%clk 1:33:11]} 11. Qc2 {[%clk 1:25:17]} 11... e5 {[%clk
1:31:56]} 12. Na3 {[%clk 1:22:58]} 12... a6 {[%clk 1:29:54]} 13. Re1 {[%clk
1:21:27]} 13... Be7 {[%clk 1:26:24]} 14. b3 {[%clk 1:17:23]} 14... O-O {[%clk
1:24:08]} 15. Bb2 {[%clk 1:16:12]} 15... Bf6 {[%clk 1:21:59]} 16. Rad1 {[%clk
1:11:53]} 16... Rad8 {[%clk 1:19:15]} 17. d3 {[%clk 1:10:01]} 17... Rfe8 {[%clk
1:15:24]} 18. Rd2 {[%clk 1:08:40]} 18... h5 {[%clk 1:11:02]} 19. Nc4 {[%clk
1:07:18]} 19... Nxc4 {[%clk 1:09:38]} 20. dxc4 {[%clk 1:07:30]} 20... Qe6 {[%clk
1:09:54]} 21. Rde2 {[%clk 1:07:53]} 21... Rb8 {[%clk 1:01:30]} 22. Ba3 {[%clk
1:01:57]} 22... b6 {[%clk 0:56:18]} 23. Nd2 {[%clk 1:01:49]} 23... h4 {[%clk
0:52:39]} 24. Ne4 {[%clk 1:01:17]} 24... Be7 {[%clk 0:52:20]} 25. Qd3 {[%clk
0:48:29]} 25... Rbd8 {[%clk 0:48:14]} 26. Qe3 {[%clk 0:47:16]} 26... f5 {[%clk
0:46:46]} 27. Nd2 {[%clk 0:42:39]} 27... Qg6 {[%clk 0:44:59]} 28. Qh3 {[%clk
0:40:19]} 28... e4 {[%clk 0:40:28]} 29. Nf1 {[%clk 0:33:55]} 29... Bf6 {[%clk
0:35:55]} 30. Rc1 {[%clk 0:27:58]} 30... f4 {[%clk 0:30:58]} 31. Rd2 {[%clk
0:25:09]} 31... Rxd2 {[%clk 0:29:12]} 32. Nxd2 {[%clk 0:25:38]} 32... e3 {[%clk
0:28:54]} 33. fxe3 {[%clk 0:24:54]} 33... fxe3 {[%clk 0:29:05]} 34. Nf3 {[%clk
0:25:04]} 34... Qd3 {[%clk 0:27:21]} 35. Ne1 {[%clk 0:24:54]} 35... Qd2 {[%clk
0:26:45]} 36. Qf3 {[%clk 0:25:18]} 36... Ne5 {[%clk 0:24:39]} 37. Qf5 {[%clk
0:21:22]} 37... h3 {[%clk 0:21:30]} 38. g3 {[%clk 0:16:28]} 38... Nd3 {[%clk
0:17:25]} 39. Qxd3 {[%clk 0:15:36]} 39... Qf2+ {[%clk 0:17:46]} 40. Kh1 {[%clk
0:16:04]} 40... Rd8 {[%clk 0:17:56]} 41. Qf1 {[%clk 0:15:03]} 41... Qxf1# {[%clk
0:18:06]} 0-1

[Variant "Standard"]
[Site "Europe Echecs"]